[Event "French Top 16-A 2024"]
[Site "Chartres"]
[Date "2024.06.01"]
[Round "2.4"]
[White "Gharamian, Tigran"]
[Black "Grigoryan, Karen H."]
[Result "0-1"]
[ECO "B53"]
[WhiteElo "2588"]
[BlackElo "2583"]
[Annotator "TA"]
[PlyCount "100"]
[EventDate "2024.06.01"]
[EventType "team-tourn"]
[EventCountry "FRA"]
[SourceTitle "playchess.com"]
[Source "ChessBase"]
[SourceQuality "1"]
[TimeControl "40/5400+30:1800+30"]

{[%evp 9,100,12,5,6,0,0,0,0,0,0,0,-3,2,0,0,-13,-18,-12,-15,-18,-12,-22,-5,-28,-14,-25,0,-31,-20,-37,-35,-46,-53,-46,-43,-56,-56,-54,-49,-92,-94,-101,-90,-98,-97,-106,-104,-100,-102,-97,-89,-142,-132,-116,-106,-106,-113,-104,-115,-115,-102,-104,-118,-111,-115,-245,-243,-248,-248,-348,-340,-367,-360,-371,-370,-370,-370,-430,-266,-285,-332,-318,-327,-327,-177,-165,-93,-556,-551,-566,-552,-559,-553]} 1. e4 {[%emt 0:00:06]} c5 {[%emt 0:00:36]} 2. Nf3 {[%emt 0:00:07]} d6 {[%emt 0:00:25]} 3. d4 {[%emt 0:00:15]} cxd4 {[%emt 0:00:04]} 4. Qxd4 {[%emt 0:00:09]} Nc6 {[%emt 0:02:30]} 5. Qe3 {[%emt 0:01:51]} g6 {[%emt 0:01:24]} 6. Nc3 {[%emt 0:00:47]} Bh6 {[%emt 0:04:59]} 7. Qd3 {[%emt 0:02:46]} Bxc1 {[%emt 0:00:25]} 8. Rxc1 {[%emt 0:00:05] The position is equal.} Nf6 {[%emt 0:00:41]} 9. h3 {[%emt 0:02:12]} O-O {[%emt 0:01:11]} 10. Be2 {[%emt 0:00:40]} Be6 {[%emt 0:01:21]} 11. O-O {[%emt 0:06:53]} Qb6 {[%emt 0:01:51]} 12. a3 {[%emt 0:09:03]} Ne5 {[%emt 0:07:04]} (12... Qxb2 $2 13. Na4 Qa2 14. Ra1 $18) 13. Nxe5 {[%emt 0:00:57]} dxe5 {[%emt 0:00:08]} 14. Qb5 {[%emt 0:07:48]} Qxb5 {[%emt 0:02:54]} 15. Bxb5 {[%emt 0:00:05]} Rac8 {[%emt 0:02:07]} 16. Bd3 {[%emt 0:05:10]} a6 {[%emt 0:05:20]} 17. Rfd1 {[%emt 0:02:33]} Rc6 {[%emt 0:05:37]} 18. Rd2 {[%emt 0:10:36]} Rfc8 {[%emt 0:01:16]} 19. Nd1 {[%emt 0:11:43]} Nd7 {[%emt 0:05:22][%cal Bf6d7,Bd7c5,Bc5a4,Ba4b2][%mdl 32]} 20. Ne3 {[%emt 0:02:09]} Nc5 {[%emt 0:00:47][%cal Oc5b3] Threatens to win with ...Nb3!} 21. Rcd1 {[%emt 0:02:33]} Rd6 {[%emt 0:09:42]} 22. f3 {[%emt 0:11:53]} Rcd8 $1 {[%emt 0:04:54]} 23. Kf2 {[%emt 0:01:22]} b5 {[%emt 0:01:02][%cal Oe6c4]} 24. Ke2 {[%emt 0:02:21]} Na4 {[%emt 0:04:15] Black is more active.} 25. c4 {[%emt 0:02:36]} bxc4 {[%emt 0:02:51]} 26. Bxc4 {[%emt 0:02:10] [#]} (26. Nxc4 $2 {too greedy.} Rxd3 27. Nxe5 Rxd2+ 28. Rxd2 Rxd2+ 29. Kxd2 Nxb2 $19) 26... Nxb2 $1 {[%emt 0:01:03]} 27. Rxb2 {[%emt 0:00:29]} Bxc4+ {[%emt 0:00:10]} 28. Ke1 {[%emt 0:00:04]} Rxd1+ {[%emt 0:01:31]} 29. Nxd1 $17 {[%emt 0:00:05][%mdl 4096] Endgame. KRB-KRN} Rd3 {[%emt 0:05:15]} 30. Rb4 {[%emt 0:00:06]} (30. Rb8+ $142 Kg7 31. Nb2) 30... Be6 $1 {[%emt 0:02:05]} 31. a4 {[%emt 0:00:09]} Rd4 {[%emt 0:06:55]} 32. Rb8+ {[%emt 0:01:43]} Kg7 {[%emt 0:00:05]} 33. Nb2 {[%emt 0:00:30]} Bd7 {[%emt 0:05:29]} 34. Rb7 {[%emt 0:09:56]} Bxa4 {[%emt 0:03:36]} 35. Rxe7 {[%emt 0:01:13]} Kf6 {[%emt 0:00:33]} 36. Rb7 {[%emt 0:00:51]} Bb5 {[%emt 0:00:24]} 37. Nd1 {[%emt 0:00:05]} (37. h4 $17) 37... Rd7 $1 $19 {[%emt 0:00:33]} 38. Rb6+ {[%emt 0:00:35] [#]} Kg5 $1 {[%emt 0:00:34]} 39. Nf2 {[%emt 0:04:48]} (39. Nc3 {was necessary.} Kf4 40. h4 (40. Nxb5 axb5 41. h4 Ra7 $15)) 39... Kf4 {[%emt 0:03:59]} 40. Ng4 {[%emt 0:00:19]} Kg3 {[%emt 0:00:56]} 41. Nxe5 {[%emt 0:03:55]} Re7 {[%emt 0:00:22]} 42. Ng4 {[%emt 0:00:28]} f5 {[%emt 0:01:38]} ({Don't take} 42... Kxg2 43. Nf6 $19) 43. Ne3 {[%emt 0:00:53]} fxe4 {[%emt 0:00:52]} 44. Rf6 {[%emt 0:00:03]} a5 {[%emt 0:10:37]} 45. fxe4 {[%emt 0:07:13]} Rxe4 {[%emt 0:00:20]} 46. Rf3+ {[%emt 0:00:07] [#]} Kh2 {[%emt 0:05:22]} (46... Kh4 $142 $1 47. Kf2 Rd4) 47. Kf2 {[%emt 0:06:32][%cal Oh3h4] h4! is the strong threat.} Rb4 {[%emt 0:03:08]} ({Black should play} 47... h5 $19 {White must now prevent ...Ra4.} 48. h4 Rxh4) 48. Rf6 $2 {[%emt 0:03:55][%mdl 8192]} (48. Ng4+ $17 {nothing else works.} Kh1 49. Ra3) 48... Rb2+ {[%emt 0:01:23] Black is clearly winning.} 49. Kf3 {[%emt 0:00:05]} a4 {[%emt 0:00:50]} 50. Rd6 {[%emt 0:06:32]} Be2+ {[%emt 0:00:51] Weighted Error Value: White=0.29 (precise) /Black=0.11 (very precise) .  Loses game:     	White=1     	---        Mistake:       	White=3     	Black=2      Inaccurate:     	White=2     	Black=1      OK:         	White=16    	Black=22     Best:        	White=5     	Black=2      Strong:       	---       	Black=3      Brilliant:      	---       	Black=1} 0-1

[Event "French Top 16-A 2024"]
[Site "Chartres"]
[Date "2024.06.01"]
[Round "2.5"]
[White "Barseghyan, Harutyun"]
[Black "Flom, Gabriel"]
[Result "0-1"]
[ECO "A45"]
[WhiteElo "2431"]
[BlackElo "2431"]
[Annotator "RC"]
[PlyCount "68"]
[EventDate "2024.06.01"]
[EventType "team-tourn"]
[EventCountry "FRA"]
[SourceTitle "playchess.com"]
[Source "ChessBase"]
[SourceQuality "1"]
[TimeControl "40/5400+30:1800+30"]

1. d4 {[%emt 0:04:53]} Nf6 {[%emt 0:00:07]} 2. Bg5 {[%emt 0:00:08]} c5 {[%emt 0:01:47]} 3. d5 {[%emt 0:02:01]} Ne4 {[%emt 0:00:15]} 4. Bf4 {[%emt 0:00:55]} e6 {[%emt 0:00:02]} 5. f3 {[%emt 0:04:30]} Bd6 {[%emt 0:01:00]} 6. Bxd6 {[%emt 0:01:13]} Nxd6 {[%emt 0:00:52]} 7. e4 {[%emt 0:00:33]} e5 {[%emt 0:11:05]} 8. Nd2 {[%emt 0:07:08]} b5 {[%emt 0:05:40]} 9. a4 {[%emt 0:08:22]} b4 {[%emt 0:00:03]} 10. a5 {[%emt 0:00:06]} Ba6 {[%emt 0:03:16]} 11. Bxa6 {[%emt 0:00:31]} Nxa6 {[%emt 0:00:04]} 12. Nh3 {[%emt 0:00:12]} c4 {[%emt 0:05:37]} 13. Qe2 {[%emt 0:07:15]} Rc8 {[%emt 0:03:56]} 14. O-O {[%emt 0:01:44]} O-O {[%emt 0:00:18]} 15. Nf2 {[%emt 0:12:20]} Qc7 {[%emt 0:03:53]} 16. Ng4 {[%emt 0:09:50]} Nb5 {[%emt 0:11:28]} 17. b3 {[%emt 0:07:28]} Nd4 {[%emt 0:00:44]} 18. Qxc4 {[%emt 0:00:12]} Qb7 {[%emt 0:00:27]} 19. Nxe5 {[%emt 0:03:12]} Rxc4 {[%emt 0:00:04]} 20. Ndxc4 {[%emt 0:00:15]} Nxc2 {[%emt 0:03:35]} 21. Rad1 {[%emt 0:14:30]} f6 {[%emt 0:03:17]} 22. Nd6 {[%emt 0:03:58]} Qb8 {[%emt 0:05:22]} 23. Nec4 {[%emt 0:00:09]} Nc5 {[%emt 0:00:56]} 24. f4 {[%emt 0:00:47]} Nxb3 {[%emt 0:05:51]} 25. e5 {[%emt 0:00:17]} Nbd4 {[%emt 0:02:18]} 26. f5 {[%emt 0:02:39]} fxe5 {[%emt 0:00:23]} 27. f6 {[%emt 0:02:40]} Rxf6 {[%emt 0:00:46]} 28. Ne4 {[%emt 0:03:01]} Rxf1+ {[%emt 0:01:59]} 29. Rxf1 {[%emt 0:00:02]} Na3 {[%emt 0:00:49]} 30. Nb2 {[%emt 0:03:06]} Qb5 {[%emt 0:01:36]} 31. d6 {[%emt 0:00:03]} Qe2 {[%emt 0:01:24]} 32. Nc5 {[%emt 0:00:19]} Qxb2 {[%emt 0:00:21]} 33. Nxd7 {[%emt 0:00:02]} Ne2+ {[%emt 0:00:31]} 34. Kh1 {[%emt 0:00:08]} Nf4 {[%emt 0:00:06]} 0-1

[Event "French Top 16-A 2024"]
[Site "Chartres"]
[Date "2024.06.01"]
[Round "2.6"]
[White "Tregubov, Pavel V."]
[Black "Hejazipour, Mitra"]
[Result "1-0"]
[ECO "D47"]
[WhiteElo "2562"]
[BlackElo "2376"]
[Annotator "TA"]
[PlyCount "43"]
[EventDate "2024.06.01"]
[EventType "team-tourn"]
[EventCountry "FRA"]
[SourceTitle "playchess.com"]
[Source "ChessBase"]
[SourceQuality "1"]
[TimeControl "40/5400+30:1800+30"]

{[%evp 17,43,22,43,45,91,98,83,83,99,98,116,105,82,81,118,135,190,129,117,147,288,293,292,296,1511,1496,1448,1439]} 1. Nf3 {[%emt 1:31:00]} Nf6 {[%emt 0:00:39]} 2. c4 {[%emt 0:00:00]} e6 {[%emt 0:00:17]} 3. Nc3 {[%emt 0:00:00]} d5 {[%emt 0:00:12]} 4. d4 {[%emt 0:00:00]} c6 {[%emt 0:02:20]} 5. e3 {[%emt 0:00:00]} Nbd7 {[%emt 0:00:41]} 6. Bd3 {[%emt 0:00:00]} dxc4 {[%emt 0:03:43]} 7. Bxc4 {[%emt 0:00:00]} b5 {[%emt 0:00:03]} 8. Be2 {[%emt 0:00:00]} b4 {[%emt 0:08:32]} 9. Na4 {[%emt 0:00:00]} Qa5 {[%emt 0:01:31]} 10. O-O {[%emt 0:00:00][%cal Bh1f1,Bf1c1,Bc1c2][%mdl 32]} c5 {[%emt 0:07:06]} (10... Ba6 $14 11. Bxa6 Qxa6) 11. Bd2 $16 {[%emt 0:00:00]} Ba6 {[%emt 0:27:13] Hoping for ...Bxe2.} 12. b3 {[%emt 0:00:00] White is better.} Bxe2 {[%emt 0:11:39]} 13. Qxe2 {[%emt 0:00:00]} Ne4 {[%emt 0:08:06]} 14. Rfc1 {[%emt 0:00:00]} Nxd2 {[%emt 0:03:12]} 15. Qxd2 {[%emt 0:00:00]} cxd4 {[%emt 0:05:20]} 16. Nxd4 {[%emt 0:00:00][%cal Bf3d4,Bd4c6,Bc6a7][%mdl 32]} Qd5 {[%emt 0:00:46] [#]} (16... Be7 $16 17. Nc6 Qd5 18. Qxd5 exd5) 17. e4 $1 {[%emt 0:00:00][%mdl 512]} Qb7 {[%emt 0:02:09]} 18. Rc2 {[%emt 0:00:00] Rac1 would now be deadly. White has more active pieces. The black rooks are passive.} Nb6 {[%emt 0:07:25]} (18... Nf6 $16) 19. Nxb6 $18 {[%emt 0:00:00]} Qxb6 {[%emt 0:00:15]} 20. Nc6 {[%emt 0:00:00] Inhibits Rd8. Rd1 is the strong threat.} Rc8 $2 {[%emt 0:07:28] [#]} (20... Be7 21. Nxe7 Kxe7) 21. Rd1 $1 {[%emt 0:00:00]} Qc7 {[%emt 0:00:34] [#] Prevents Qd7+.} 22. Nxa7 $1 {[%emt 0:00:00][%mdl 512] Weighted Error Value: White=0.07 (flawless) /Black=0.32.  Mistake:       	White=1     	Black=4      Inaccurate:     	---       	Black=1      OK:         	White=6     	Black=4      Best:        	White=1     	---} 1-0

[Event "French Top 16-A 2024"]
[Site "Chartres"]
[Date "2024.06.01"]
[Round "2.6"]
[White "Girel, Joseph"]
[Black "Vitoux, Colomban"]
[Result "1-0"]
[ECO "C02"]
[WhiteElo "2477"]
[BlackElo "2374"]
[Annotator "TA"]
[PlyCount "91"]
[EventDate "2024.06.01"]
[EventType "team-tourn"]
[EventCountry "FRA"]
[SourceTitle "playchess.com"]
[Source "ChessBase"]
[SourceQuality "1"]
[TimeControl "40/5400+30:1800+30"]

{[%evp 11,91,18,54,58,89,22,25,32,29,31,33,33,30,30,29,10,6,7,11,11,6,16,70,78,62,63,60,31,27,0,29,28,38,47,34,0,0,8,52,-50,-45,-45,-54,-53,0,0,0,0,122,127,127,18,421,408,424,431,431,427,427,427,427,427,570,570,570,570,570,560,659,659,809,809,940,906,772,760,29976,29977,29973,29974,29983,29981]} 1. e4 {[%emt 0:00:03]} e6 {[%emt 0:02:24]} 2. d4 {[%emt 0:00:29]} d5 {[%emt 0:00:07]} 3. e5 {[%emt 0:01:52]} c5 {[%emt 0:00:11]} 4. c3 {[%emt 0:00:06]} Qa5 {[%emt 0:00:19]} 5. dxc5 {[%emt 0:01:59]} Qc7 {[%emt 0:01:52]} 6. Nf3 {[%emt 0:02:47] C02: French: Advance Variation.} Nd7 {[%emt 0:06:15]} 7. b4 $1 {[%emt 0:07:33]} Nxe5 {[%emt 0:02:39]} 8. Nxe5 $146 {[%emt 0:02:32]} (8. Bf4 $1 $16 Nxf3+ 9. Qxf3) ({Predecessor:} 8. Bf4 Nxf3+ 9. Qxf3 Qd8 10. Na3 a6 11. Bd3 g6 12. O-O Bg7 13. Rad1 Bd7 14. c4 {0-1 Milliet,S (2410)-Kosteniuk,A (2518) FIDE Grand Swiss (Women) 2021 (1)}) 8... Qxe5+ $11 {[%emt 0:00:04]} 9. Be3 {[%emt 0:00:08]} Nf6 {[%emt 0:01:09]} 10. Bb5+ {[%emt 0:07:12]} Bd7 {[%emt 0:01:06]} 11. a4 {[%emt 0:02:11]} Be7 {[%emt 0:07:07]} 12. O-O {[%emt 0:00:32]} O-O {[%emt 0:01:44]} 13. Re1 {[%emt 0:08:42]} (13. Bd4 $5 Qc7 $8 14. Bxd7 Nxd7 15. c4 dxc4 16. Nc3 $17) 13... Qc7 {[%emt 0:02:46]} 14. Nd2 {[%emt 0:05:11]} b6 {[%emt 0:08:26]} 15. Nb3 {[%emt 0:10:09]} Bxb5 {[%emt 0:32:17]} 16. axb5 {[%emt 0:00:55]} Ne4 {[%emt 0:00:28]} (16... bxc5 $1 $11 17. Nxc5 (17. bxc5 Rfb8 $14) 17... Nd7) 17. f3 $1 $14 {[%emt 0:06:05]} (17. Qd4 $2 Bf6 18. Qd3 Bxc3 $19 (18... Nxc3 19. Rec1 $16)) 17... Nxc3 {[%emt 0:01:38]} 18. Qd3 {[%emt 0:00:03]} d4 $1 {[%emt 0:00:53]} 19. Bxd4 {[%emt 0:07:04]} Nd5 {[%emt 0:00:59]} 20. Qc4 {[%emt 0:00:23]} Rfc8 {[%emt 0:04:50]} 21. Be5 {[%emt 0:04:19]} Bd6 {[%emt 0:01:29]} 22. Bxd6 {[%emt 0:00:48]} Qxd6 {[%emt 0:00:02]} 23. Rac1 {[%emt 0:03:53]} Qf4 {[%emt 0:03:48]} 24. Re4 {[%emt 0:03:33]} Qg5 {[%emt 0:00:15]} 25. c6 {[%emt 0:00:53]} ({White should play} 25. f4 $14 Qf6 26. Nd4) 25... Nc7 $1 $15 {[%emt 0:04:52]} 26. Nd4 {[%emt 0:03:02]} Rd8 {[%emt 0:00:38]} 27. h4 {[%emt 0:07:58]} Qd2 {[%emt 0:03:42]} (27... Qh5 $15) 28. Rc2 $11 {[%emt 0:03:02]} Qd1+ {[%emt 0:00:45]} 29. Kh2 {[%emt 0:00:06]} Rd5 {[%emt 0:01:16]} (29... g6 $11) 30. Qc3 $1 $16 {[%emt 0:00:47]} Qf1 {[%emt 0:05:25]} 31. Rc1 {[%emt 0:07:42]} ({Only move:} 31. Re1 $1 $16 {[%cal Re1f1]} Nxb5 32. Qe3 (32. Rxf1 Nxc3 33. Nxe6 Nb5 $18) (32. Qd2 Qxe1 33. Qxe1 Nxd4 $18) 32... Qxe1 33. Qxe1 Nxd4 34. Rc4) 31... Nxb5 $2 {[%emt 0:00:56][%mdl 8192]} (31... Qf2 $1 $11) 32. Qe3 {[%emt 0:01:20]} Qxc1 {[%emt 0:01:06]} 33. Qxc1 {[%emt 0:00:02]} Nxd4 {[%emt 0:03:40]} 34. c7 {[%emt 0:01:10]} Rc8 {[%emt 0:00:14] [#]} 35. Rxd4 $1 {[%emt 0:00:56]} Rxd4 {[%emt 0:00:01] [#]} 36. Qc6 $1 {[%emt 0:00:06]} h5 {[%emt 0:01:51]} (36... Rxb4 $2 {too greedy.} 37. Qd7 Rxh4+ 38. Kg3) 37. Qb7 {[%emt 0:02:39]} Rxc7 {[%emt 0:00:04]} 38. Qb8+ {[%emt 0:00:04]} Kh7 {[%emt 0:00:25]} 39. Qxc7 {[%emt 0:00:02]} Rxh4+ {[%emt 0:01:44]} 40. Kg3 {[%emt 0:00:02]} Rxb4 {[%emt 0:00:12]} 41. Qxf7 {[%emt 0:30:21]} Rb5 {[%emt 0:10:29]} 42. Qxe6 {[%emt 0:00:00]} Rg5+ {[%emt 0:00:32]} 43. Kh3 {[%emt 0:00:00]} Ra5 {[%emt 0:06:33]} 44. f4 {[%emt 0:00:00]} Ra1 {[%emt 0:09:50]} 45. Kh4 {[%emt 0:00:00]} Rf1 {[%emt 0:01:57]} 46. Qf5+ {[%emt 0:00:00]} 1-0

[Event "French Top 16-A 2024"]
[Site "Chartres"]
[Date "2024.06.01"]
[Round "2.7"]
[White "Migot, Tangi"]
[Black "Degraeve, Remy"]
[Result "1/2-1/2"]
[ECO "C50"]
[WhiteElo "2326"]
[BlackElo "2433"]
[Annotator "TA"]
[PlyCount "90"]
[EventDate "2024.06.01"]
[EventType "team-tourn"]
[EventCountry "FRA"]
[SourceTitle "playchess.com"]
[Source "ChessBase"]
[SourceQuality "1"]
[TimeControl "40/5400+30:1800+30"]

{[%evp 9,90,11,20,11,14,0,0,-3,0,0,0,0,0,-17,0,0,0,0,14,12,12,0,0,-8,-10,-7,-6,-17,42,67,50,45,79,62,62,62,64,63,79,79,173,160,252,160,156,106,118,84,77,35,60,31,40,20,5,7,10,6,8,8,8,8,8,8,8,8,8,8,11,16,23,8,16,16,18,11,25,0,27,0,67,0,5501]} 1. e4 {[%emt 0:00:03]} e5 {[%emt 0:00:03]} 2. Nf3 {[%emt 0:00:08]} Nc6 {[%emt 0:00:03]} 3. Bc4 {[%emt 0:00:29]} Nf6 {[%emt 0:00:07]} 4. d3 {[%emt 0:00:41]} Bc5 {[%emt 0:00:05]} 5. Nc3 {[%emt 0:01:25]} a6 {[%emt 0:00:26]} 6. a4 {[%emt 0:01:34]} d6 {[%emt 0:01:44]} 7. Be3 {[%emt 0:02:00]} Bxe3 {[%emt 0:05:22]} 8. fxe3 {[%emt 0:00:07]} Be6 {[%emt 0:00:25]} 9. Nd2 {[%emt 0:00:51]} O-O {[%emt 0:03:10]} 10. O-O {[%emt 0:00:16]} Nb4 {[%emt 0:01:33]} 11. h3 {[%emt 0:01:50]} Qd7 {[%emt 0:04:28]} 12. a5 {[%emt 0:04:26]} Rad8 {[%emt 0:11:00]} 13. Rf2 {[%emt 0:08:16]} d5 {[%emt 0:04:00]} 14. exd5 {[%emt 0:04:59]} Nfxd5 {[%emt 0:00:25]} 15. Bxd5 {[%emt 0:06:51]} Nxd5 {[%emt 0:00:37]} 16. e4 {[%emt 0:15:31]} Nxc3 {[%emt 0:07:57]} 17. bxc3 {[%emt 0:02:09]} Qc6 {[%emt 0:57:35]} 18. c4 {[%emt 0:03:09]} b5 {[%emt 0:00:00]} ({Black should try} 18... Ra8 $11) 19. axb6 $14 {[%emt 0:03:23]} Qxb6 {[%emt 0:00:00]} 20. Qb1 {[%emt 0:05:24]} Qa7 {[%emt 0:00:00]} 21. Qa2 {[%emt 0:02:44]} Rd6 {[%emt 0:00:00]} 22. Qa5 {[%emt 0:01:13]} f6 {[%emt 0:00:00]} 23. Nb3 {[%emt 0:01:53]} Rc6 {[%emt 0:00:00]} 24. Qe1 {[%emt 0:03:39]} f5 {[%emt 0:00:00]} (24... Ra8 $16) 25. Kh2 $18 {[%emt 0:05:50]} Rf6 {[%emt 0:00:00]} (25... Bc8 $16 26. Ra5 Rcf6) 26. exf5 {[%emt 0:04:43]} Bxf5 {[%emt 0:00:00]} 27. Ra5 {[%emt 0:01:03]} ({White should play} 27. Re2) 27... Bg6 $16 {[%emt 0:00:00]} 28. Rxf6 {[%emt 0:07:50]} gxf6 {[%emt 0:00:00]} 29. Rd5 {[%emt 0:00:14]} (29. Nc5 $5) 29... Re6 {[%emt 0:00:00]} 30. Rd8+ {[%emt 0:03:14]} Re8 $1 {[%emt 0:00:00]} 31. Rxe8+ {[%emt 0:01:16]} Bxe8 $14 {[%emt 0:00:00][%mdl 4096] Endgame. [#] KQB-KQN} 32. d4 $1 {[%emt 0:00:28]} Qb6 {[%emt 0:00:43]} 33. dxe5 {[%emt 0:00:58]} fxe5 {[%emt 0:00:02]} 34. Qxe5 {[%emt 0:02:32]} Qd6 {[%emt 0:00:02]} 35. Qxd6 {[%emt 0:00:48]} cxd6 $11 {[%emt 0:00:04] KB-KN} 36. Kg3 {[%emt 0:00:48]} Bg6 {[%emt 0:01:25]} 37. c3 {[%emt 0:01:48]} Kf7 {[%emt 0:01:28]} 38. Kf4 {[%emt 0:00:16]} Bc2 {[%emt 0:01:45]} 39. Na5 {[%emt 0:00:59]} Ke6 {[%emt 0:01:31]} 40. Ke3 {[%emt 0:03:24]} Bd1 {[%emt 0:02:51]} 41. g4 {[%emt 0:01:58]} Kf6 {[%emt 0:07:28]} 42. Kf4 {[%emt 0:16:47]} Be2 {[%emt 0:01:49]} 43. Ke3 {[%emt 0:08:07]} Bd1 {[%emt 0:00:27]} 44. Kf4 {[%emt 0:02:02]} Be2 {[%emt 0:00:06]} 45. Ke3 {[%emt 0:01:06]} (45. h4 $1 $14) 45... Ke5 $2 {[%emt 0:24:19][%mdl 40960] Weighted Error Value: White=0.13 (very precise) /Black=0.13 (very precise) .  Loses game:     	---       	Black=1      Mistake:       	White=2     	Black=3      Inaccurate:     	White=3     	Black=1      OK:         	White=15    	Black=11     Best:        	White=1     	Black=2      Strong:       	---       	Black=1     . An unexpected result.} 1/2-1/2

[Event "French Top 16-A 2024"]
[Site "Chartres"]
[Date "2024.06.01"]
[Round "2.7"]
[White "Mathieu, Phileas"]
[Black "Delorme, Laurie"]
[Result "1-0"]
[ECO "B40"]
[WhiteElo "2302"]
[BlackElo "2075"]
[Annotator "RC"]
[PlyCount "59"]
[EventDate "2024.06.01"]
[EventType "team-tourn"]
[EventCountry "FRA"]
[SourceTitle "playchess.com"]
[Source "ChessBase"]
[SourceQuality "1"]
[TimeControl "40/5400+30:1800+30"]

1. e4 {[%emt 0:00:02]} c5 {[%emt 0:01:35]} 2. Nc3 {[%emt 0:00:12]} e6 {[%emt 0:00:06]} 3. Nge2 {[%emt 0:00:37]} Nf6 {[%emt 0:02:25]} 4. d4 {[%emt 0:06:19]} cxd4 {[%emt 0:00:16]} 5. Nxd4 {[%emt 0:00:02]} Bb4 {[%emt 0:00:10]} 6. Qf3 {[%emt 0:20:30]} Qb6 {[%emt 0:16:10]} 7. Nb3 {[%emt 0:05:42]} O-O {[%emt 0:19:49]} 8. Bd3 {[%emt 0:03:31]} d5 {[%emt 0:08:18]} 9. exd5 {[%emt 0:10:25]} Nxd5 {[%emt 0:00:45]} 10. O-O {[%emt 0:04:03]} Nxc3 {[%emt 0:06:01]} 11. bxc3 {[%emt 0:04:29]} Bxc3 {[%emt 0:06:32]} 12. Rb1 {[%emt 0:01:57]} Qc7 {[%emt 0:03:23]} 13. Ba3 {[%emt 0:03:25]} Nd7 {[%emt 0:05:08]} 14. Rfd1 {[%emt 0:04:04]} Be5 {[%emt 0:09:06]} 15. g3 {[%emt 0:04:01]} Re8 {[%emt 0:04:19]} 16. Nd2 {[%emt 0:04:04]} Nb6 {[%emt 0:07:16]} 17. Rb5 {[%emt 0:03:47]} f5 {[%emt 0:00:25]} 18. Re1 {[%emt 0:01:58]} Nd7 {[%emt 0:04:41]} 19. Nc4 {[%emt 0:09:32]} Bf6 {[%emt 0:00:38]} 20. Bxf5 {[%emt 0:02:20]} Nf8 {[%emt 0:00:46]} 21. Bd3 {[%emt 0:01:38]} Bd7 {[%emt 0:00:48]} 22. Rh5 {[%emt 0:03:28]} Bc6 {[%emt 0:00:42]} 23. Qg4 {[%emt 0:00:37]} g6 {[%emt 0:00:56]} 24. Nd6 {[%emt 0:01:27]} Red8 {[%emt 0:00:41]} 25. Rxe6 {[%emt 0:02:15]} Bd7 {[%emt 0:01:09]} 26. Ne4 {[%emt 0:01:40]} Bg7 {[%emt 0:00:29]} 27. Bxf8 {[%emt 0:00:55]} Rxf8 {[%emt 0:00:24]} 28. Rxh7 {[%emt 0:00:42]} Bxe6 {[%emt 0:00:43]} 29. Qxg6 {[%emt 0:00:18]} Qf7 {[%emt 0:01:19]} 30. Nf6+ {[%emt 0:01:30]} 1-0

[Event "French Top 16-A 2024"]
[Site "Chartres"]
[Date "2024.06.01"]
[Round "2.8"]
[White "Delorme, Laurie"]
[Black "Fischer, Julie"]
[Result "1-0"]
[ECO "E90"]
[WhiteElo "2075"]
[BlackElo "2092"]
[Annotator "RC"]
[PlyCount "79"]
[EventDate "2024.06.01"]
[EventType "team-tourn"]
[EventCountry "FRA"]
[SourceTitle "playchess.com"]
[Source "ChessBase"]
[SourceQuality "1"]
[TimeControl "40/5400+30:1800+30"]

1. d4 {[%emt 0:00:03]} Nf6 {[%emt 0:00:04]} 2. c4 {[%emt 0:00:12]} g6 {[%emt 0:00:06]} 3. Nc3 {[%emt 0:00:05]} Bg7 {[%emt 0:00:07]} 4. Nf3 {[%emt 0:00:28]} O-O {[%emt 0:00:19]} 5. e4 {[%emt 0:00:28]} d6 {[%emt 0:00:14]} 6. h3 {[%emt 0:00:08]} c6 {[%emt 0:02:07]} 7. Be3 {[%emt 0:00:42]} Qa5 {[%emt 0:05:28]} 8. Nd2 {[%emt 0:08:42]} Nbd7 {[%emt 0:19:07]} 9. a3 {[%emt 0:04:26]} e5 {[%emt 0:03:58]} 10. d5 {[%emt 0:02:28]} Ne8 {[%emt 0:06:12]} 11. g4 {[%emt 0:03:37]} Qd8 {[%emt 0:09:56]} 12. Qc2 {[%emt 0:15:08]} cxd5 {[%emt 0:06:48]} 13. exd5 {[%emt 0:24:50]} f5 {[%emt 0:01:31]} 14. f3 {[%emt 0:00:33]} a6 {[%emt 0:11:28]} 15. O-O-O {[%emt 0:03:24]} b6 {[%emt 0:01:02]} 16. h4 {[%emt 0:04:12]} fxg4 {[%emt 0:05:09]} 17. fxg4 {[%emt 0:00:15]} Ndf6 {[%emt 0:00:36]} 18. g5 {[%emt 0:06:15]} Ng4 {[%emt 0:06:25]} 19. Bg1 {[%emt 0:00:09]} Bf5 {[%emt 0:01:24]} 20. Bd3 {[%emt 0:01:00]} Rc8 {[%emt 0:04:04]} 21. Kb1 {[%emt 0:01:40]} b5 {[%emt 0:02:23]} 22. Nce4 {[%emt 0:03:34]} Nc7 {[%emt 0:02:51]} 23. Qb3 {[%emt 0:09:14]} bxc4 {[%emt 0:02:23]} 24. Bxc4 {[%emt 0:00:13]} Rb8 {[%emt 0:01:39]} 25. Qa4 {[%emt 0:06:36]} Nb5 {[%emt 0:01:53]} 26. Ka2 {[%emt 0:00:28]} Qc8 {[%emt 0:03:18]} 27. Rc1 {[%emt 0:03:02]} Qb7 {[%emt 0:00:13]} 28. b3 {[%emt 0:01:30]} Bd7 {[%emt 0:01:06]} 29. Qa5 {[%emt 0:00:15]} Rfc8 {[%emt 0:00:20]} 30. a4 {[%emt 0:00:33]} Rxc4 {[%emt 0:02:44]} 31. Rxc4 {[%emt 0:00:28]} Qxd5 {[%emt 0:00:06]} 32. axb5 {[%emt 0:00:31]} axb5 {[%emt 0:00:07]} 33. Rc7 {[%emt 0:00:25]} Be6 {[%emt 0:00:32]} 34. Rxg7+ {[%emt 0:00:32]} Kxg7 {[%emt 0:00:07]} 35. Qc7+ {[%emt 0:00:04]} Bf7 {[%emt 0:00:25]} 36. Qxb8 {[%emt 0:00:10]} Qd3 {[%emt 0:00:17]} 37. Qc7 {[%emt 0:00:49]} d5 {[%emt 0:00:42]} 38. Qc3 {[%emt 0:00:26]} dxe4 {[%emt 0:01:01]} 39. Qxd3 {[%emt 0:00:21]} exd3 {[%emt 0:00:05]} 40. Rh3 {[%emt 0:00:18]} 1-0